Cogmind - Beta 17.1 @@@ ROGUE MODE // 2026.08.17 @ 09:35:04 Player: Minty Result: Destroyed by G-34 Mercenary with Small Laser Performance ------------- Evolutions (0) 0 Regions Visited (1) 200 Robots Destroyed (17) 85 Value Destroyed (429) 429 Prototype IDs (2) 40 Alien Tech Used (0) 0 Bonus (0) 0 TOTAL SCORE: 754 Bonus ------- None Cogmind --------- Core Integrity 0/250 Matter 134/300 Energy 250/250 System Corruption 0% Temperature Cool (6) Movement Walking (120) Location -10/Materials Parts ------- > --- POWER (1) -------- Ion Engine > --- PROPULSION (2) --- Aluminum Leg Aluminum Leg > --- UTILITY (2) ------ Improved Heat Sink Small Storage Unit > --- WEAPON (2) ------- Assault Rifle Grenade Launcher > --- INVENTORY (8) ---- Ion Engine Light Nuclear Core Light Treads Light Treads Wheel Wheel Improved Heat Sink Medium Laser Peak State ------------ > --- POWER ------------ Ion Engine > --- PROPULSION ------- Aluminum Leg Aluminum Leg > --- UTILITY ---------- Improved Heat Sink Small Storage Unit > --- WEAPON ----------- Medium Laser Assault Rifle > --- INVENTORY -------- Ion Engine Light Nuclear Core Light Treads Light Treads Wheel Wheel Improved Heat Sink Grenade Launcher [Rating: 10] Favorites ----------- Power Ion Engine Engine Ion Engine Propulsion Aluminum Leg Leg Aluminum Leg Utility Small Storage Unit Device Improved Heat Sink Storage Small Storage Unit Weapon Assault Rifle Energy Gun Medium Laser Ballistic Gun Assault Rifle Launcher Grenade Launcher Build | -11 -10 ------- Run | Yrd Mat Slots Evolved . | . . Power . | . . Propulsion . | . . Utility . | . . Weapon . | . . Parts Attached 4 | . 4 Power . | . . Engine . | . . Core . | . . Reactor . | . . Propulsion 1 | . 1 Treads . | . . Leg 1 | . 1 Wheel . | . . Hover . | . . Flight . | . . Utility 1 | . 1 Device 1 | . 1 Storage . | . . Processor . | . . Hackware . | . . Protection . | . . Artifact . | . . Weapon 2 | . 2 Energy Gun 1 | . 1 Energy Cannon . | . . Ballistic Gun . | . . Ballistic Cannon . | . . Launcher 1 | . 1 Special Weapon . | . . Impact Weapon . | . . Slashing Weapon . | . . Piercing Weapon . | . . Special Melee Weapon . | . . Unidentified Prototypes . | . . Parts Lost 2 | . 2 Power . | . . Propulsion 1 | . 1 Utility . | . . Weapon 1 | . 1 Highest Loss Streak 1 | . 1 To Critical Strikes . | . . Average Backups 6 | . 6 Power 1 | . 1 Propulsion 4 | . 4 Utility . | . . Weapon . | . . Tool/Special . | . . Unused Backups 13 | . 13 Power 3 | . 3 Propulsion 6 | . 6 Utility 2 | . 2 Weapon 2 | . 2 Tool/Special . | . . Average Slot Usage (%) 85 | . 85 Engine 14 | . 14 Leg 26 | . 26 Device 2 | . 2 Storage 14 | . 14 Energy Gun 7 | . 7 Ballistic Gun 19 | . 19 Launcher 1 | . 1 Peak Build Rating 10 | . 10 Average Rating 6 | . 6 On Entrance 6 | 6 6 Avg Prop Armor Cover (%) . | . . Naked Turns . | . . Heaviest Build 16 | 14 16 Greatest Support 20 | 20 20 Greatest Overweight (x) 1 | . 1 Average Overweight (x) . | . . Largest Inventory Capacity 8 | . 8 Average Capacity 8 | . 8 Most Carried 8 | . 8 Average Carried 6 | . 6 Final Capacity 8 | 8 8 Final Carried 8 | 6 8 Class Distribution -------------------- 100% | Mutant Dominant Class ---------------- Mutant | -10/Materials Resources | -11 -10 ----------- Run | Yrd Mat Matter Collected 296 | 200 96 Remotely . | . . Salvage Created 478 | . 478 Parts 36 | . 36 Haulers Intercepted 2 | . 2 Recyclers Shooed 1 | . 1 Parts Field Recycled . | . . Retrieved Matter . | . . Parts Self-Destructed . | . . Prevented . | . . Parts Restored . | . . Kills | -11 -10 ------- Run | Yrd Mat Combat Hostiles Destroyed 11 | . 11 Guns 6 | . 6 AOE 5 | . 5 Classes Destroyed 6 | . 6 Worker 2 | . 2 Builder 1 | . 1 Hauler 2 | . 2 Watcher 1 | . 1 Swarmer 2 | . 2 Grunt 9 | . 9 Best Kill Streak 10 | . 10 Combat Bots Only 7 | . 7 Max Kills in Single Turn 2 | . 2 Gunslinging . | . . Exploded 2 | . 2 Melee . | . . Uniques/NPCs Destroyed . | . . Combat | -11 -10 -------- Run | Yrd Mat Hostile Shots Fired 86 | . 86 Missed 28 | . 28 Hits 58 | . 58 Projectile 58 | . 58 Damage Taken 737 | . 737 Core 250 | . 250 Absorbed by Shields . | . . Core Remaining (%) 100 | 100 . Volleys Fired 41 | . 41 Largest 2 | . 2 Hottest 70 | . 70 Shots Fired 78 | . 78 Gun 70 | . 70 Cannon . | . . Launcher 8 | . 8 Special . | . . Kinetic 47 | . 47 Thermal 23 | . 23 Explosive 8 | . 8 Electromagnetic . | . . Robot Hit Streak 8 | . 8 Robot Miss Streak 6 | . 6 Penetration Max . | . . Secondary Targets 2 | . 2 Max Gunslinging Chain 1 | . 1 Shots Hit Robots 43 | . 43 Core Hits 28 | . 28 Critical Kills . | . . Critical Parts Destroyed . | . . Critical Strikes 2 | . 2 Burn 2 | . 2 Melee Attacks . | . . Impact . | . . Slashing . | . . Piercing . | . . Sneak Attacks . | . . Combat Hostiles . | . . Follow-up Attacks . | . . Damage Inflicted 1076 | . 1076 Guns 569 | . 569 Cannons . | . . Explosions 502 | . 502 Melee . | . . Ramming 5 | . 5 Kinetic 368 | . 368 Thermal 292 | . 292 Explosive 411 | . 411 Electromagnetic . | . . Impact . | . . Slashing . | . . Piercing . | . . Highest Corruption . | . . Average Corruption . | . . Corruption Purged . | . . Corruption Blocked . | . . Overload Shots . | . . Overflow Damage 87 | . 87 Projectiles . | . . Explosions 87 | . 87 Melee . | . . Knockbacks . | . . Impact . | . . Kinetic . | . . Secondary . | . . Self-Inflicted Damage 48 | . 48 Shots 2 | . 2 Rammed . | . . Targets Rammed 3 | . 3 Kicked 3 | . 3 Crushed . | . . Highest Temperature 105 | . 105 Average Temperature 29 | . 29 Received Heat Transfer 378 | . 378 Siege Activations . | . . Martial Activations . | . . Shielding Activations . | . . Robots Disrupted . | . . Combat Hostiles . | . . Robots Corrupted . | . . Combat Hostiles . | . . Parts Fried . | . . Impact Corruptions . | . . Robots Melted . | . . Combat Hostiles . | . . Parts Melted 1 | . 1 Heat Transferred 790 | . 790 Parts Sabotaged . | . . Parts Stolen . | . . Parts Stripped . | . . Power Chain Reactions . | . . Alert | -11 -10 ------- Run | Yrd Mat Maximum Alert Level 1 | . 1 Low Security (%) 72 | . 72 Level 1 27 | . 27 Level 2 . | . . Level 3 . | . . Level 4 . | . . Level 5 . | . . High Security . | . . Max Security . | . . Peak Influence 336 | . 336 Initial . | . . Average 103 | . 103 Influence Increases 495 | . 495 Destroy 0b10 Robot/C 220 | . 220 Destroy 0b10 Robot/NC 30 | . 30 Destroy Leader 46 | . 46 Successful Hack 27 | . 27 Disable Machine 75 | . 75 Destroy Structure 82 | . 82 Partial Spotted 15 | . 15 Influence Decreases 159 | . 159 Time Decay 139 | . 139 Lost Part 20 | . 20 Squads Dispatched 2 | . 2 Investigation 1 | . 1 Extermination . | . . Reinforcement 1 | . 1 Assault . | . . Garrison . | . . Intercept . | . . Searches Triggered . | . . Construction Impeded . | . . Haulers Reinforced . | . . Active Scanning Responses . | . . Cargo Convoy Interrupts . | . . Stealth | -11 -10 --------- Run | Yrd Mat Distress Signals 2 | . 2 Communications Jammed . | . . Distress Signals . | . . Times Spotted 16 | . 16 Peak Tracking Total 5 | . 5 Tactical Retreats . | . . Traps | -11 -10 ------- Run | Yrd Mat Traps Triggered . | . . Indirectly . | . . Trap Hack Attempts . | . . Triggered . | . . Disarmed . | . . Reprogrammed . | . . Reused . | . . Traps Extracted . | . . Installed . | . . Triggered . | . . Machines | -11 -10 ---------- Run | Yrd Mat Machines Disabled 5 | . 5 Max in Single Turn 3 | . 3 Machines Repaired . | . . Machines Dismantled . | . . Machines Sabotaged . | . . Overloaded Fab Kills . | . . Hacking | -11 -10 --------- Run | Yrd Mat Machines Accessed 3 | . 3 Terminals 3 | . 3 Fabricators . | . . Repair Stations . | . . Recycling Units . | . . Scanalyzers . | . . Garrison Access . | . . Total Hacks 14 | . 14 Successful 7 | . 7 Failed 7 | . 7 Catastrophic . | . . Database Lockouts . | . . Manual 10 | . 10 Terminals 14 | . 14 Fabricators . | . . Repair Stations . | . . Recycling Units . | . . Scanalyzers . | . . Garrison Access . | . . Terminal Hacks 6 | . 6 Prototype ID Bank 1 | . 1 Branch Access Points 1 | . 1 Alert Level 1 | . 1 Maintenance Status 1 | . 1 Zone Layout 2 | . 2 Fabricator Hacks . | . . Repair Station Hacks . | . . Recycling Unit Hacks . | . . Scanalyzer . | . . Garrison Access Hacks . | . . Unauthorized Hacks 1 | . 1 Terminals 1 | . 1 Botnet 1 | . 1 Fabricators . | . . Repair Stations . | . . Recycling Units . | . . Scanalyzers . | . . Garrison Access . | . . Data Cores Recovered . | . . Used . | . . Hacking Detections 3 | . 3 Full Trace Events 1 | . 1 Feedback Events . | . . Feedback Blocked . | . . Robot Schematics Acquired . | . . Robots Built . | . . Authchips . | . . Time . | . . Total Robot Build Rating . | . . Part Schematics Acquired . | . . Parts Built . | . . Authchips . | . . Time . | . . Total Part Build Rating . | . . Part Studies Acquired . | . . Parts Repaired . | . . Time . | . . Parts Recycled . | . . Recycled Matter . | . . Retrieved Matter . | . . Retrieved Components . | . . Parts Scanalyzed . | . . Part Schematics Acquired . | . . Parts Damaged . | . . Bothacking | -11 -10 ------------ Run | Yrd Mat Used RIF Installer . | . . Robots Hacked . | . . Non-combat . | . . Combat . | . . Robot Hacks Applied . | . . Relay Couplers Released . | . . Fabnet Peak Effective % . | . . Robots Rewired . | . . Allies Hacked . | . . Hacks Repelled . | . . Allies | -11 -10 -------- Run | Yrd Mat Total Allies . | . . Largest Group . | . . Highest-Rated Group . | . . Highest-Rated Ally . | . . Total Orders . | . . Ally Attacks . | . . Total Damage . | . . Kills . | . . Allies Corrupted . | . . Allies Melted . | . . Intel | -11 -10 ------- Run | Yrd Mat Active Infowar (turns) . | . . Robot Analysis Total . | . . Derelict Logs Recovered . | . . Drone Launches . | . . Drone Recoveries . | . . Exploration | -11 -10 ------------- Run | Yrd Mat Turns Passed 358 | . 358 Spaces Moved 169 | 1 168 Core . | . . Treads . | . . Legs 169 | 1 168 Wheels . | . . Hover . | . . Flight . | . . Fastest Speed 120 | 120 120 Average Speed 122 | 120 122 Slowest Speed 190 | 120 190 Overloaded Moves . | . . Propulsion Burnouts . | . . Robots Hopped . | . . Potential Cave-ins . | . . Cave-ins Triggered . | . . Exploration Rate (%) 21 | 2 40 Regions Visited 1 Branch Regions . Pre-discovered Areas . | . . Known Exits Taken . | . . Unknown Exits Taken 1 | 1 . Scrap Searched . | . . Spaces Dug . | . . Terrain Destroyed 85 | . 85 Melee . | . . Projectile . | . . AOE 85 | . 85 Terrain Rammed . | . . Walls Destroyed . | . . Machines Disabled . | . . Actions | -11 -10 --------- Run | Yrd Mat Total 240 | . 240 Wait 19 | . 19 Move 168 | . 168 Hop . | . . Pick Up 3 | . 3 Fast Attach 2 | . 2 Attach 1 | . 1 Detach . | . . Swap 3 | . 3 Drop . | . . Fire 41 | . 41 Melee . | . . Ram . | . . Kick 3 | . 3 Crush . | . . Escape Stasis . | . . Rewire . | . . Trap . | . . Miscellaneous . | . . Route ------- -11/Scrapyard -10/Materials (discovered 2 exits: *Min x2) History --------- Turn | Location | Event 1 | -11/Scrapyard | Discovered new exit (range 0) 1 | -11/Scrapyard | Entered Materials 9 | -10/Materials | Identified exit to Mines 160 | -10/Materials | Core integrity fell below 50% 254 | -10/Materials | Core integrity fell below 20% 290 | -10/Materials | Destroyed 7 combat bots 314 | -10/Materials | Build established: Mutant 359 | -10/Materials | Destroyed by G-34 Mercenary with Small Laser Last Messages --------------- 00304_ U-05 Engineer lays Concrete. 00307_ U-05 Engineer builds a Wall. 00307_ U-05 Engineer lays Concrete. 00320_ K-01 Serf collects debris. 00323_ T-07 Excavator is excavating. 00331_ Connecting with Terminal... >>Layout(Zone) Retrieving Zone 3D layout... Downloaded map data. >>Alert(Check) Current Alert Level: 1-Q 00332_ T-07 Excavator is excavating. 00341_ K-01 Serf collects debris. 00343_ W-16 Scout sends out distress signal. 00344_ T-07 Excavator is excavating. 00350_ K-01 Serf collects debris. 00354_ Destroyed Mining Laser. 00354_ K-01 Serf destroyed. 00356_ The unstable cave ceiling collapses. 00358_ K-01 Serf collects debris. Map ----- +----------------------------------------------------+ | ?????????# ?????## """ " " # | | ?????????# ?>???+ """ " " # | | ?????????# ????## """ " ###+# | | ?????????# ????# " | | ??????????# ????# | | ???????????# ???# ""% | | ???????????# #### ""% "T###### | | ???????????+ " # "### | | ????????? # = / #?# | | ????????? # * ! # " #?# | | ????????? # ##+#####"T=#===# " #?# | | ????????? # # #"""#% # " #?# | | ?????????### # #####%=%#""""""""###""" | | ?????????### + #??##=! ## !// #""" | | ????????? # #??##= ## // #""" | | ?????????##### # #??# = =# """ // # | | ?????????#???# # #??# =%#[""" ##### | | ?????????????# #####+##??# " [+=""" #???? | | ?????????##??# #???# #???# =#% * #???? | | ????????? #??# #???# #???# #% #???? | | ????????? ####+##### #???#### ## #???? | | ????????? # # #????##########+#####???? | | ????????? # """ # #?###??????#### #???????? | | ????????? # """ # ###T### ## ###?????? | | ?????????## """ # k ?????? | | ?????????## + @ ?????? | | ?????????## """ # * t g^ ?????? | | ?????????## """ ###% #/# ######?????? | | ?????????## """ ## = #??#????#?????? | | ?????????## # #???????#?????? | | ?????????##+######### ########?????? | | ????????? #???????###### ## +?????? | | ????????? #????????????# !![## """ #?????? | | ????????? #????????????# !![ # """ #?????? | | ????????? #???????????X# ![[ # """ #?????? | | ?????????## #??????####### ## """ #?????? | | ??????????# #??????# # " " ## #?????? | | ?????????##+####???# " # "R" ####+####?????? | | ????????? #???# T # """ #??# #??#?????? | | ?????????????????????????????????????????????? | | ?????????????????????????????????????????????? | | ?????????????????????????????????????????????? | | ?????????????????????????????????????????????? | | ?????????????????????????????????????????????? | | ?????????????????????????????????????????????? | | ?????????????????????????????????????????????? | | ?????????????????????????????????????????????? | | ?????????????????????????????????????????????? | | ?????????????????????????????????????????????? | | ?????????????????????????????????????????????? | +----------------------------------------------------+ Best States ------------- Heat Dissipation 39 Energy Generation 10 Energy Capacity 250 Matter Stores 300 Matter Capacity 300 Sight Range 16 Terrain Scan Density 10 Evasion (%) 55 Item Schematics ----------------- None Robot Schematics ------------------ None Fabricated ------------ Nothing Repaired ---------- Nothing Studied --------- None Alien Tech Used ----------------- None Achievements -------------- None Challenges ------------ None Game ------ Seed ShadingHardcellHammerchucker Manual? 0 Play Time 00:05:45 Cumulative 1368.9 hours Start 2026.08.17 @ 09:31:16 End 2026.08.17 @ 09:35:04 Sessions 1 Manual Loads 0 Difficulty Rogue Special Mode None Game No. 1678 Rogue 1394 Adventurer 124 Explorer 160 Win Type - Total 72 Types 55/0/11/4/1/0/0/1/0/0 Lore% 92 Gallery% 84 Achievement% 74 Wizard Run 0 Options --------- Layout 0 ASCII 0 Keyboard 1 Movement Numpad Keybinds 0 Fullscreen 2 Font 18/X11 Map View 76x50 Zoom Use 0% Tactical HUD 1 Map Filters NONE Filters NONE Steam 1 RUN: dd1fc7f9-9b06-43e1-939a-568bee258676